bitfinex/quotes_ETHUSD_20241124
["timestamp","ask_amount","ask_price","bid_price","bid_amount"]
[1732470167183,3.8353,3307.2,3306.6,1.51211]
[1732470167364,3.8353,3307.2,3306.6,0.151211]
[1732470167365,3.02387,3307.1,3306.6,0.151211]
[1732470167731,0.8116,3307.2,3305.9,3.26711229]
[1732470167732,3.02429,3306.6,3306.0,1.51238]
[1732470168102,3.8357,3306.8,3306.0,1.51238]
[1732470168103,3.02444,3306.4,3306.0,0.32919523]
[1732470168207,3.02468,3306.2,3305.7,1.51249]
[1732470168408,3.83567,3306.8,3305.6,0.61070222]
[1732470168607,3.02446,3306.4,3305.8,1.51249]
[1732470169076,6.04866,3306.6,3305.9,1.51241]
[1732470169282,3.02433,3306.6,3305.9,1.51241]
[1732470169518,3.02433,3306.6,3306.0,0.30249]
[1732470169701,3.02436,3306.5,3305.9,1.51241]
[1732470170225,3.02458,3306.3,3305.8,0.55]
[1732470170403,3.02458,3306.3,3305.8,0.76232122]
[1732470171290,3.02458,3306.3,3305.8,2.27480122]
[1732470172021,6.04879,3306.5,3305.8,2.27480122]
[1732470172381,3.02444,3306.4,3305.9,0.37873012]
[1732470172529,3.02445,3306.4,3305.9,1.89116012]
[1732470174024,3.02445,3306.4,3305.9,0.37873012]
[1732470174325,3.02454,3306.3,3305.9,0.37873012]
[1732470174487,3.02454,3306.3,3305.6,0.61070222]
[1732470174488,3.02474,3306.1,3305.6,0.55]
[1732470174684,3.0249,3305.9,3305.3,1.51271]
[1732470174887,3.0249,3305.9,3305.5,0.60253]
[1732470175121,3.0249,3305.9,3305.3,1.51271]
[1732470175596,6.04987,3305.9,3305.3,1.51271]
[1732470175718,3.0249,3305.9,3305.3,1.51271]
[1732470176356,3.02475,3306.1,3305.3,1.51271]
[1732470176516,6.04954,3306.1,3305.5,1.51262]
[1732470176849,3.02475,3306.1,3305.5,1.51262]
[1732470177416,3.0248,3306.0,3305.5,1.51262]
[1732470178329,3.0248,3306.0,3305.5,1.889657]
[1732470178538,3.02462,3306.2,3305.7,1.51253]
[1732470178844,6.04896,3306.4,3305.7,3.02503]
[1732470179007,3.02453,3306.3,3305.7,1.85573162]
[1732470179212,3.02446,3306.4,3305.7,1.85573162]
[1732470179446,3.02446,3306.4,3305.8,1.51248]
[1732470180362,3.02454,3306.3,3305.8,1.814985]
[1732470181356,3.02454,3306.3,3305.9,0.07861189]
[1732470181549,0.8116,3306.6,3305.9,0.07861189]
[1732470181789,3.14162212,3306.9,3306.1,1.51232]
[1732470182061,0.23300221,3306.8,3306.1,1.51232]
[1732470182388,0.23300221,3306.8,3306.2,0.07857591]
[1732470182545,0.23300221,3306.8,3306.1,1.51232]
[1732470182729,0.23300221,3306.8,3306.3,0.07857591]
[1732470182932,0.23300221,3306.8,3306.1,1.51232]
[1732470183248,3.14162212,3306.9,3306.4,0.07857591]
[1732470183423,3.14162212,3306.9,3306.1,1.51232]
[1732470183845,3.14162212,3306.9,3306.2,0.07857591]
[1732470184517,3.14162212,3306.9,3306.2,1.59087591]
[1732470185460,3.14162212,3306.9,3306.2,0.07857591]
[1732470185629,0.61655121,3306.8,3306.2,0.07857591]
[1732470185834,0.61655121,3306.8,3306.1,1.51233]
[1732470186035,0.61655121,3306.8,3306.3,0.0753111]
[1732470186234,0.61655121,3306.8,3306.1,1.51233]
[1732470186528,0.61655121,3306.8,3306.4,0.0753111]
[1732470186673,0.61655121,3306.8,3306.0,3.02472]
[1732470186973,0.61655121,3306.8,3306.2,1.51231]
[1732470187533,0.61655121,3306.8,3306.3,0.07531624]
[1732470187727,0.61655121,3306.8,3306.2,1.51231]
[1732470187959,0.61655121,3306.8,3306.4,0.07531624]
[1732470188137,0.61655121,3306.8,3306.0,1.51236]
[1732470188334,0.61655121,3306.8,3306.5,0.07531624]
[1732470188536,0.61655121,3306.8,3306.1,1.51232]
[1732470188773,0.61655121,3306.8,3306.6,0.07531624]
[1732470188951,0.61655121,3306.8,3306.1,1.51232]
[1732470189143,6.16563212,3306.9,3306.2,1.5123]
[1732470189346,3.02421,3306.7,3306.2,0.07531624]
[1732470189539,3.02465,3306.2,3305.4,1.51263]
[1732470189735,3.02465,3306.2,3305.5,1.51262]
[1732470189965,3.02465,3306.2,3305.5,1.663882]
[1732470190276,0.7638,3306.0,3304.5,0.41456597]
[1732470190472,3.02504,3305.8,3305.0,1.51283]
[1732470190675,2.33002212,3306.1,3304.8,1.51293]
[1732470190676,0.7638,3305.5,3304.8,1.51293]
[1732470190876,3.02541,3305.4,3304.6,1.513]
[1732470191181,3.02551,3305.3,3304.7,1.51299]
[1732470191863,3.78906,3305.5,3304.9,1.5129]
[1732470192676,0.7638,3305.5,3304.9,1.5129]
[1732470193033,0.7638,3305.5,3304.9,1.815449]
[1732470193356,0.7638,3305.5,3304.9,1.51286]
[1732470193538,3.78906,3305.5,3304.9,1.51286]
[1732470194571,3.02552,3305.3,3304.5,3.177441]
[1732470194749,3.02553,3305.2,3304.6,1.51303]
[1732470194950,3.0254,3305.4,3304.7,1.51297]
[1732470195676,3.0254,3305.4,3304.7,3.02593]
[1732470195876,3.0254,3305.4,3304.8,1.51293]
[1732470196079,3.0254,3305.4,3304.8,1.664223]
[1732470196261,3.0254,3305.4,3304.8,1.51293]
[1732470196568,0.7638,3305.5,3304.9,0.06861802]
[1732470196569,3.02544,3305.3,3304.9,0.06861802]
[1732470197145,6.05097,3305.3,3304.9,0.06861802]
[1732470197342,3.02562,3305.1,3304.6,1.51302]
[1732470197554,3.404364,3305.3,3304.4,1.51309]
[1732470197555,3.02575,3305.0,3304.4,1.51309]
[1732470197770,3.78755,3305.0,3304.4,1.5131]
[1732470198077,3.78755,3305.0,3304.4,1.51309]
[1732470198262,3.02583,3304.9,3304.3,2.06317]
[1732470198581,3.02599,3304.8,3303.9,1.51334]
[1732470198751,3.02614,3304.6,3304.0,1.51329]
[1732470199311,3.0266,3304.1,3303.8,0.59471018]
[1732470199968,3.02656,3304.1,3303.8,0.59471018]
[1732470200142,3.02656,3304.1,3303.3,1.51361]
[1732470200143,3.02665,3304.0,3303.5,1.51354]
[1732470200391,3.02665,3304.0,3303.5,2.11108962]
[1732470200585,3.02665,3304.0,3303.5,0.59754962]
[1732470201083,3.0265,3304.2,3303.5,2.11106962]
[1732470201512,6.05302,3304.2,3303.5,2.11106962]
[1732470202101,3.78811,3304.4,3303.7,1.51344]
[1732470202254,3.02648,3304.2,3303.6,1.51346]
[1732470202783,3.02663,3304.1,3303.5,0.59754962]
[1732470202989,0.7618,3304.1,3303.5,0.59754962]
[1732470203212,3.0269,3303.8,3303.5,0.59754962]
[1732470203363,0.7618,3303.7,3303.5,0.59754962]
[1732470204683,3.027,3303.6,3303.5,0.59754962]
[1732470204890,3.02714,3303.5,3302.9,1.5138]
[1732470205062,3.02714,3303.5,3302.7,1.5139]
[1732470205063,3.02718,3303.4,3302.8,1.51385]
[1732470205273,3.02718,3303.4,3303.0,0.06861802]
[1732470205449,3.80067,3303.1,3302.9,0.07008405]
[1732470205659,3.02783,3302.7,3302.3,0.31499482]
[1732470205892,3.02783,3302.7,3302.0,1.51421]
[1732470206060,3.02783,3302.7,3302.4,0.07121637]
[1732470206290,3.02783,3302.7,3302.0,1.51421]
[1732470206291,3.02766,3302.9,3302.2,1.51413]
[1732470206530,0.7732,3303.4,3302.2,0.302834]
[1732470206700,3.80044,3303.4,3302.5,1.51399]
[1732470206857,3.02808,3302.5,3302.3,0.07121637]
[1732470207185,3.02808,3302.5,3301.3,1.67127577]
[1732470207186,3.0281,3302.4,3301.6,1.51441]
[1732470207491,3.0281,3302.4,3301.6,1.51438]
[1732470207653,3.0281,3302.4,3301.8,1.51429]
[1732470208090,3.0281,3302.4,3301.7,2.10869124]
[1732470208290,3.0281,3302.4,3301.8,0.55]
[1732470208460,3.02826,3302.3,3301.7,0.59434124]
[1732470208666,0.7732,3302.6,3301.7,0.59434124]
[1732470208879,3.02839,3302.1,3301.7,0.59434124]
[1732470209103,3.02847,3302.0,3301.7,0.59434124]
[1732470209423,3.02856,3301.9,3301.1,3.0]
[1732470209584,3.02883,3301.7,3301.2,0.451467]
[1732470209793,3.02881,3301.7,3301.4,0.59255363]
[1732470210094,3.02859,3301.9,3301.4,0.59255363]
[1732470210301,3.02867,3301.8,3301.4,0.59255363]
[1732470210513,3.02877,3301.7,3301.4,0.59255363]
[1732470210723,3.02877,3301.7,3301.1,1.51461]
[1732470210901,3.02867,3301.8,3301.2,1.51459]
[1732470211393,3.02875,3301.7,3301.3,0.07121637]
[1732470211592,3.02891,3301.6,3301.3,0.07121637]
[1732470211779,3.02901,3301.4,3300.7,1.51481]
[1732470211978,3.02901,3301.4,3300.9,0.59599906]
[1732470211979,3.02925,3301.2,3300.9,0.59599906]
[1732470212209,1.56623786,3301.1,3300.9,0.59599906]
[1732470212378,1.56623786,3301.1,3300.6,1.51486]
[1732470212580,1.56623786,3301.1,3300.6,1.817841]
[1732470213426,1.56623786,3301.1,3300.7,0.55]
[1732470213810,4.59552786,3301.1,3300.4,1.51495]
[1732470214008,4.59552786,3301.1,3300.2,1.51504]
[1732470214009,3.02948,3300.9,3300.3,3.0]
[1732470214201,3.02948,3300.9,3300.6,0.60633536]
[1732470214202,3.80286,3300.7,3300.6,0.60633536]
[1732470214528,3.80286,3300.7,3300.0,20.557573]
[1732470214529,0.7732,3300.7,3300.0,22.072683]
[1732470214693,5.34803559,3300.7,3300.1,3.5708473]
[1732470214893,1.45773778,3300.6,3300.1,3.5708473]
[1732470215085,4.48753778,3300.6,3300.1,2.0557573]
[1732470215276,1.45773778,3300.6,3300.1,2.0557573]
[1732470215622,1.45827908,3300.5,3300.1,3.5708573]
[1732470215938,1.45827908,3300.5,3300.1,2.0557573]
[1732470216096,1.45827908,3300.5,3300.0,22.072713]
[1732470216278,1.45827908,3300.5,3300.1,1.51509]
[1732470216946,1.45827908,3300.5,3300.1,3.0302]
[1732470217117,1.45827908,3300.5,3300.1,1.5151]
[1732470217309,0.7732,3301.0,3300.2,2.2072673]
[1732470217616,0.7732,3301.0,3300.4,1.51496]
[1732470217812,0.7732,3301.3,3300.7,1.5148]
[1732470218027,0.7732,3301.3,3300.9,1.51469]
[1732470218235,3.02884,3301.6,3301.0,1.51469]
[1732470218710,3.02895,3301.5,3300.7,1.51481]
[1732470218904,0.7732,3301.7,3300.7,1.51481]
[1732470218905,0.7732,3301.7,3300.7,1.72432049]
[1732470219137,3.02918,3301.3,3300.7,1.51481]
[1732470219459,3.02918,3301.3,3300.5,2.0649]
[1732470219460,3.02935,3301.1,3300.5,1.5149]
[1732470219658,1.379053,3301.1,3300.3,1.51499]
[1732470219938,3.02978,3300.6,3299.9,2.11435317]
[1732470220141,3.02968,3300.7,3300.1,1.51507]
[1732470220365,0.7732,3301.1,3300.0,24.33990562]
[1732470220646,3.03001,3300.4,3300.0,20.557573]
[1732470221648,3.02985,3300.5,3300.0,20.557573]
[1732470221948,0.7732,3300.9,3300.1,1.51506]
[1732470222125,3.80268,3300.9,3300.3,1.51501]
[1732470222698,0.7732,3300.9,3300.3,1.51501]
[1732470222952,0.7732,3301.2,3300.6,1.51486]
[1732470223150,3.7732,3301.2,3300.6,1.51486]
[1732470223321,0.7732,3301.2,3300.9,1.51473]
[1732470223648,3.802,3301.7,3301.1,1.51464]
[1732470223853,0.7732,3301.7,3301.3,1.51455]
[1732470224264,0.7732,3301.7,3301.1,1.51464]
[1732470224677,3.80202,3301.7,3301.1,1.51464]
[1732470225842,0.7732,3301.7,3301.3,1.51455]
[1732470226199,0.7732,3301.7,3301.1,1.51464]
[1732470226357,0.7732,3301.7,3301.4,0.07312788]
[1732470226551,0.7732,3301.7,3301.1,1.51464]
[1732470226790,0.7732,3301.7,3301.5,0.07312788]
[1732470226947,0.7732,3301.7,3301.2,1.5146]
[1732470227150,0.7732,3301.7,3301.3,0.07312788]
[1732470227377,1.153391,3301.7,3301.1,1.51461]
[1732470227678,0.7732,3301.7,3301.4,0.07307633]
[1732470227875,0.7732,3301.7,3301.2,0.55]
[1732470228289,0.7732,3301.7,3301.3,0.07307633]
[1732470228660,0.7732,3301.7,3301.2,0.55]
[1732470228857,0.7732,3301.7,3301.4,0.07307633]
[1732470229058,0.7732,3301.7,3301.3,1.51454]
[1732470229258,0.7732,3301.7,3301.5,0.07307633]
[1732470229456,0.7732,3301.7,3301.3,1.51454]
[1732470229662,0.7732,3301.7,3301.6,0.07307633]
[1732470229880,0.7732,3301.7,3301.3,1.51454]
[1732470230040,0.7732,3301.7,3301.4,0.07307633]
[1732470230580,0.7732,3301.7,3301.4,1.58755633]
[1732470230792,0.7732,3301.7,3301.4,0.07307633]
[1732470231348,3.02813,3302.4,3301.8,1.51431]
[1732470231584,0.8054,3302.3,3301.8,1.51431]
[1732470231797,0.8054,3302.3,3301.9,0.07305056]
[1732470232314,0.8054,3302.3,3301.6,1.51437]
[1732470232518,0.8054,3302.3,3301.9,1.51427]
[1732470233070,0.8054,3302.3,3302.0,0.07294747]
[1732470233828,0.8054,3302.3,3302.1,0.07282893]
[1732470233978,0.8054,3302.3,3301.8,1.51432]
[1732470234189,0.8054,3302.3,3301.9,0.07282893]
[1732470234390,0.8054,3302.3,3301.8,1.51432]
[1732470234593,0.8054,3302.3,3301.9,0.07282893]
[1732470234888,3.0283,3302.2,3301.7,0.55]
[1732470235205,4.519794,3302.3,3301.8,0.07239082]
[1732470235400,4.519794,3302.3,3301.7,0.55]
[1732470235401,3.83364,3302.3,3301.7,1.51435]
[1732470235603,3.83364,3302.3,3301.8,0.07239082]
[1732470235808,3.02843,3302.1,3301.4,0.55]
[1732470236016,3.02858,3301.9,3301.5,0.07239082]
[1732470236218,2.51080164,3301.8,3301.2,1.51459]
[1732470236380,2.51080164,3301.8,3301.3,0.07241143]
[1732470236381,3.02881,3301.7,3301.3,0.07241143]
[1732470236580,3.02881,3301.7,3300.3,0.03029053]
[1732470236581,3.02898,3301.5,3300.7,1.51478]
[1732470236779,3.02917,3301.3,3300.8,0.07241143]
[1732470237006,3.02918,3301.3,3300.7,1.51478]
[1732470237225,3.02918,3301.3,3300.2,3.93090588]
[1732470237226,3.83462,3301.2,3300.8,0.07256604]
[1732470237522,2.33002212,3301.1,3300.0,20.557573]
[1732470237730,3.02976,3300.6,3300.0,20.557573]
[1732470237889,3.02976,3300.6,3300.0,22.072683]
[1732470238194,3.02976,3300.6,3300.1,1.5151]
[1732470238389,3.02966,3300.7,3300.1,1.5151]
[1732470239144,3.0295,3300.9,3300.2,1.51505]
[1732470239425,3.02948,3300.9,3300.3,1.51499]
[1732470239595,3.02948,3300.9,3300.4,1.51496]
[1732470239790,0.8054,3300.9,3300.0,20.557573]
[1732470240010,3.02984,3300.5,3300.0,20.557573]
[1732470240385,3.02993,3300.4,3300.0,20.557573]
[1732470240760,6.06018,3300.3,3300.0,20.557573]
[1732470240907,0.52633142,3300.7,3300.0,20.557573]
[1732470241220,3.03,3300.4,3300.0,20.557573]
[1732470241421,3.03,3300.4,3300.1,0.07014937]
[1732470241791,3.02975,3300.6,3300.1,0.07014937]
[1732470242131,3.02975,3300.6,3300.1,2.06277224]
[1732470242487,3.02975,3300.6,3300.2,0.07014937]
[1732470242688,4.4579842,3300.8,3300.2,0.07014937]
[1732470242887,4.4579842,3300.8,3300.3,1.51499]
[1732470243115,1.4283842,3300.8,3300.3,1.51499]
[1732470243332,3.02964,3300.8,3300.1,1.51509]
[1732470243498,3.02964,3300.8,3300.4,0.07014937]
[1732470243689,3.02964,3300.8,3300.2,1.51505]
[1732470243890,3.02964,3300.8,3300.5,0.07014937]
[1732470244191,3.02964,3300.8,3300.6,0.07014937]
[1732470244512,3.02983,3300.6,3300.0,20.557573]
[1732470244821,3.02994,3300.4,3300.0,20.557573]
[1732470245347,3.03012,3300.2,3300.0,20.557573]
[1732470245690,0.8042,3300.3,3300.0,20.557573]
[1732470246011,3.83426,3300.3,3300.0,20.557573]
[1732470247386,0.8042,3300.3,3300.0,20.557573]
[1732470247612,3.02984,3300.5,3300.0,20.557573]
[1732470248028,0.8042,3300.6,3300.0,24.2799693]
[1732470248328,3.83397,3300.6,3300.0,24.2799693]
[1732470248528,0.8042,3300.6,3300.1,1.51507]
[1732470248687,3.02978,3300.6,3300.0,24.2799993]
[1732470248887,3.02978,3300.6,3300.1,2.42799993]
[1732470249088,3.02971,3300.7,3300.1,2.42799993]
[1732470249316,3.02986,3300.5,3300.1,2.42799993]
[1732470249527,3.02971,3300.7,3300.1,3.94309993]
[1732470249698,3.02971,3300.7,3300.1,2.42799993]
[1732470249891,1.40040202,3300.8,3300.3,1.515]
[1732470250095,1.40040202,3300.8,3300.2,2.45007129]
[1732470250096,1.40040202,3300.8,3300.4,1.51492]
[1732470250300,3.02938,3301.0,3300.4,1.51495]
[1732470250506,3.02938,3301.0,3300.4,1.51493]
[1732470251446,3.02938,3301.0,3300.2,2.45007129]
[1732470251609,3.02938,3301.0,3300.4,1.51495]
[1732470251805,3.02938,3301.0,3300.3,0.39651113]
[1732470251806,0.8042,3301.2,3300.3,0.39651113]
[1732470252034,3.02971,3300.7,3300.1,2.0651]
[1732470252432,0.8042,3301.2,3300.1,2.0651]
[1732470252737,3.02932,3301.1,3300.5,1.51491]
[1732470253036,3.02911,3301.3,3300.7,1.51482]
[1732470253554,3.02925,3301.2,3300.6,1.51486]
[1732470253839,3.02907,3301.4,3300.7,1.51479]
[1732470254057,3.02907,3301.4,3300.8,1.51475]
[1732470254413,3.412201,3301.7,3300.9,1.51471]
[1732470254647,3.029,3301.5,3300.9,1.5147]
[1732470254853,0.8042,3301.8,3301.0,0.0712526]
[1732470255060,3.02961,3300.8,3300.1,3.60048815]
[1732470255242,3.0298,3300.6,3300.0,22.072713]
[1732470255766,3.03,3300.4,3300.0,20.557573]
[1732470256549,3.0299,3300.5,3300.1,0.07139183]
[1732470256713,3.02989,3300.5,3300.1,0.07139183]
[1732470258739,3.02994,3300.4,3300.1,0.07139183]
[1732470258927,3.02989,3300.5,3300.1,0.07139183]
[1732470259252,3.02993,3300.4,3300.1,0.07139183]
[1732470259456,3.83402,3300.6,3300.1,0.07139183]
[1732470259829,3.02994,3300.4,3300.1,0.07139183]
[1732470260152,3.03011,3300.2,3300.1,0.07139183]
[1732470260456,3.02958,3300.8,3300.2,1.51503]
[1732470260757,3.0,3301.2,3300.2,2.36591148]
[1732470261049,6.05943,3300.7,3300.3,0.07159816]
[1732470261220,3.0299,3300.5,3300.0,20.557573]
[1732470261429,3.02993,3300.5,3300.4,0.07160332]
[1732470261674,3.02993,3300.5,3300.0,20.557573]
[1732470261852,3.02975,3300.6,3300.4,0.07160332]
[1732470262065,3.02975,3300.6,3300.1,1.5151]
[1732470262350,3.02958,3300.8,3300.5,0.07149499]
[1732470262515,3.02966,3300.7,3300.1,1.51507]
[1732470262715,3.02958,3300.8,3300.1,1.51507]
[1732470262716,3.02958,3300.8,3300.6,0.07149499]
[1732470263041,3.02966,3300.7,3300.1,2.42799183]
[1732470263349,3.02966,3300.7,3300.1,1.51507]
[1732470263650,3.02966,3300.7,3300.1,3.03014]
[1732470263849,3.02976,3300.6,3300.0,22.072713]
[1732470264216,3.02976,3300.6,3300.1,1.5151]
[1732470265149,3.02989,3300.5,3300.0,20.557573]
[1732470266080,3.02989,3300.5,3300.0,22.072723]
[1732470266874,3.02983,3300.6,3300.0,22.072713]
[1732470267174,3.02989,3300.5,3300.0,20.557573]
[1732470267337,3.02989,3300.5,3300.0,22.072713]
[1732470267732,3.02966,3300.7,3300.0,22.072713]
[1732470267967,3.02966,3300.7,3300.1,1.51509]
[1732470268568,3.02984,3300.5,3300.0,22.072713]
[1732470268975,3.02984,3300.5,3300.0,20.557573]
[1732470269221,3.02999,3300.4,3300.0,20.557573]
[1732470269463,3.02984,3300.5,3300.0,20.557573]
[1732470269663,3.02994,3300.4,3300.0,20.557573]
[1732470270166,3.0297,3300.7,3300.0,20.557573]
[1732470270167,3.0297,3300.7,3300.0,22.072703]
[1732470270462,3.83361,3301.0,3300.0,22.072703]
[1732470270463,3.02998,3300.4,3300.0,20.557573]
[1732470270832,3.03007,3300.3,3300.0,20.557573]
[1732470271274,3.03007,3300.3,3300.1,0.07175287]
[1732470271770,3.78424,3300.5,3300.1,0.07175287]
[1732470272144,3.02993,3300.4,3300.1,0.07175287]
[1732470272352,3.78424,3300.5,3300.1,0.07175287]
[1732470272548,3.03006,3300.3,3300.1,0.07175287]
[1732470272749,3.78424,3300.5,3300.1,0.07175287]
[1732470273679,3.0297,3300.7,3300.1,0.07175287]
[1732470273887,3.02976,3300.6,3300.1,1.58685287]
[1732470274038,3.02984,3300.5,3300.1,0.07175287]
[1732470274263,3.02995,3300.4,3300.1,0.07175287]
[1732470275663,3.02975,3300.6,3300.1,0.07175287]
[1732470275978,0.7544,3300.8,3300.2,1.51505]
[1732470276198,0.7544,3300.8,3300.3,1.515]
[1732470276531,6.02953,3300.9,3300.3,1.58668066]
[1732470276814,3.02938,3301.0,3300.3,1.58668066]
[1732470277027,3.02925,3301.2,3300.7,1.51481]
[1732470277318,3.0292,3301.2,3300.7,1.51481]
[1732470277516,3.0292,3301.2,3300.8,0.07158266]
[1732470277700,3.02891,3301.6,3300.9,1.5147]
[1732470277893,3.02891,3301.6,3301.0,1.51466]
[1732470278202,3.02891,3301.6,3301.1,1.51464]
[1732470278593,3.02891,3301.6,3301.2,0.07120617]
[1732470278917,3.02902,3301.4,3301.2,0.07120617]
[1732470279132,3.0291,3301.3,3301.2,0.07120617]
[1732470279304,3.0291,3301.3,3300.7,1.51482]
[1732470279623,0.7544,3301.7,3296.1,13.0]
[1732470279624,3.78387,3300.9,3300.8,0.07120101]
[1732470279920,3.78387,3300.9,3299.0,0.1]
[1732470279921,3.02975,3300.6,3299.9,1.51516]
[1732470280124,3.02996,3300.4,3299.9,1.51516]
[1732470280427,6.05959,3300.6,3300.1,0.07120101]
[1732470280795,3.02987,3300.5,3300.1,0.07120101]
[1732470281429,3.02973,3300.7,3300.1,0.07120101]
[1732470282524,3.02975,3300.6,3300.1,0.07120101]
[1732470282724,3.02975,3300.6,3300.1,3.95220541]
[1732470283022,3.02966,3300.7,3300.2,1.51504]
[1732470283187,3.02961,3300.8,3300.2,1.51504]
[1732470283380,3.02961,3300.8,3300.2,4.11752584]
[1732470283699,3.02961,3300.8,3300.3,0.07120101]
[1732470283897,0.7544,3300.9,3300.2,4.11752584]
[1732470283898,3.02968,3300.7,3300.2,4.11752584]
[1732470284215,3.02968,3300.7,3300.3,0.07120101]
[1732470284448,3.02968,3300.7,3300.2,4.11752584]
[1732470284947,3.02957,3300.8,3300.3,1.58619101]
[1732470285712,3.02957,3300.8,3300.3,0.07120101]
[1732470286153,0.7544,3300.9,3300.3,0.41887369]
[1732470286347,3.0294,3301.0,3300.4,0.07147432]
[1732470286540,3.02959,3300.8,3300.4,0.07147432]
[1732470289052,3.7694,3301.2,3300.4,0.07147432]
[1732470289053,3.02966,3300.7,3300.4,0.07147432]
[1732470289271,3.02984,3300.5,3300.4,0.07147432]
[1732470289455,3.02984,3300.5,3300.4,0.07144339]
[1732470289614,3.02984,3300.5,3300.0,22.072713]
[1732470289817,3.02984,3300.5,3300.0,24.4315043]
[1732470290019,3.02984,3300.5,3300.1,0.07144339]
[1732470290440,3.02975,3300.6,3300.1,0.07144339]
[1732470291026,3.02975,3300.6,3300.1,1.58654339]
[1732470291223,3.02975,3300.6,3300.1,4.03683416]
[1732470293329,3.02953,3300.9,3300.3,1.515]
[1732470293454,3.02953,3300.9,3300.4,0.07146918]
[1732470293695,3.02936,3301.1,3300.4,1.58638918]
[1732470293899,3.02941,3301.0,3300.4,1.8965281]
[1732470294585,3.02926,3301.2,3300.5,0.55]
[1732470294873,3.02902,3301.4,3300.7,1.5148]
[1732470295258,3.02925,3301.2,3300.8,0.07140729]
[1732470295460,3.02939,3301.0,3300.5,2.0649]
[1732470295682,3.02925,3301.2,3300.6,0.07123712]
[1732470295998,3.02925,3301.2,3300.7,1.51482]
[1732470296173,3.02925,3301.2,3300.7,1.58605196]
[1732470296363,3.02925,3301.2,3300.7,0.07123196]
[1732470297209,4.101066,3301.7,3301.0,1.51468]
[1732470297210,0.7694,3301.7,3301.0,1.51468]
[1732470297505,3.02899,3301.5,3301.1,0.07115462]
[1732470297655,3.7986,3301.2,3301.1,0.07115462]
[1732470298013,3.7986,3301.2,3300.3,1.515]
[1732470298014,3.02952,3300.9,3300.3,1.515]
[1732470298160,3.02952,3300.9,3300.4,1.817963]
[1732470298361,3.02952,3300.9,3300.4,0.07115462]
[1732470298362,6.05907,3300.9,3300.4,0.07115462]
[1732470298600,3.02952,3300.9,3300.4,0.07115462]
[1732470299301,3.02963,3300.8,3300.4,0.07115462]
[1732470299501,3.02963,3300.8,3300.4,0.22976808]
[1732470299703,3.02871,3301.8,3301.2,1.51458]
[1732470299998,3.02871,3301.8,3301.3,0.07119071]
[1732470300374,3.02871,3301.8,3301.2,1.51459]
[1732470300576,3.02871,3301.8,3301.4,0.07104118]
[1732470300805,3.02866,3301.8,3301.2,1.51459]
[1732470300969,3.02866,3301.8,3301.5,0.07104118]
[1732470301167,3.02866,3301.8,3301.2,1.817518]
[1732470301373,3.02852,3302.0,3301.6,0.07104118]
[1732470301595,3.02856,3301.9,3301.3,1.51452]
[1732470301831,3.02867,3301.8,3301.3,1.51452]
[1732470302114,3.02831,3302.2,3301.4,0.07104118]
[1732470302264,3.02831,3302.2,3300.6,0.58028969]
[1732470302265,0.7694,3302.4,3301.6,1.51439]
[1732470302469,3.79751,3302.4,3301.7,1.73684018]
[1732470302732,3.79751,3302.4,3301.8,1.51431]
[1732470303167,3.79751,3302.4,3301.7,1.51436]
[1732470303408,3.02819,3302.3,3301.9,0.07104118]
[1732470303707,3.02819,3302.3,3301.7,1.51433]
[1732470303921,3.79751,3302.4,3301.8,1.58535118]
[1732470304082,3.0282,3302.3,3301.8,1.58535118]
[1732470304271,3.02819,3302.3,3301.8,0.07104118]
[1732470304468,3.02819,3302.3,3301.8,1.58536118]
[1732470304798,3.02819,3302.3,3301.9,0.07104118]
[1732470305012,0.7694,3302.4,3301.9,0.07104118]
[1732470305190,3.0,3302.7,3301.9,0.07104118]
[1732470305370,3.0,3302.7,3302.2,1.51411]
[1732470306083,3.0,3302.7,3302.3,0.07104118]
[1732470306273,3.83239,3303.0,3302.2,1.51411]
[1732470306616,3.0277,3302.9,3302.3,0.07104118]
[1732470306768,3.02774,3302.8,3302.3,0.07104118]
[1732470307027,4.215619,3303.0,3302.3,0.07104118]
[1732470307357,4.215619,3303.0,3302.4,0.07104118]
[1732470307358,3.02806,3302.5,3302.4,0.07104118]
[1732470307534,3.83286,3302.5,3302.4,0.07104118]
[1732470307868,0.8048,3301.9,3301.2,1.51456]
[1732470308026,3.02874,3301.7,3301.2,1.51456]
[1732470308230,3.0288,3301.7,3301.3,0.07104118]
[1732470308451,3.83336,3301.9,3301.3,1.51455]
[1732470308667,3.83336,3301.9,3301.1,1.51463]
[1732470308959,3.02879,3301.7,3301.2,0.07104118]
[1732470309169,3.83336,3301.9,3301.3,1.51451]
[1732470309371,3.02841,3302.1,3301.4,1.51448]
[1732470309529,3.331251,3302.1,3300.9,4.45730713]
[1732470309877,3.02857,3301.9,3301.3,1.51452]
[1732470310177,3.02822,3302.3,3301.7,1.51434]
[1732470310322,3.02822,3302.3,3301.4,0.07069065]
[1732470310323,3.0282,3302.3,3301.5,1.51444]
[1732470310529,0.383302,3302.2,3301.6,1.5845139]
[1732470310722,3.0282,3302.3,3301.6,1.5845139]
[1732470311561,3.02829,3302.2,3301.7,1.51437]
[1732470311985,3.83295,3302.4,3301.7,3.02869]
[1732470312188,3.02794,3302.6,3302.0,1.5142]
[1732470312473,3.0,3302.7,3302.0,1.5142]
[1732470312638,3.02757,3303.0,3302.2,1.51411]
[1732470312845,3.02764,3302.9,3302.3,1.51409]
[1732470313053,3.02764,3302.9,3302.1,0.06998963]
[1732470313054,3.02779,3302.8,3302.0,1.51421]
[1732470313237,0.605521,3302.9,3301.8,0.26328911]
[1732470313238,3.02757,3303.0,3302.4,0.06998448]
[1732470313529,3.02757,3303.0,3302.5,0.06998448]
[1732470314467,6.0552,3303.0,3302.5,0.06998448]
[1732470314666,6.0552,3303.0,3302.4,1.51404]
[1732470314892,3.8048,3303.2,3302.6,1.51395]